fUSD/lending_fUSD_20250820
["ID","MTS","AMOUNT","RATE_DAILY","PERIOD"]
[380390946,1755723056391,-4561.56,0.00030136,120]
[380390947,1755723056402,-583.27,0.00030136,120]
[380390948,1755723056413,-400.0,0.00030136,120]
[380390949,1755723056429,-400.0,0.00030136,120]
[380390950,1755723056440,-400.0,0.00030136,120]
[380390951,1755723056452,-643.57,0.00030136,120]
[380390952,1755723056463,-1305.99,0.00030136,120]
[380390953,1755723056475,-811.88,0.00030136,120]
[380390954,1755723056487,-1044.91,0.00030136,120]
[380390955,1755723056499,-400.0,0.00030136,120]
[380390956,1755723056512,-1201.05,0.00030136,120]
[380390957,1755723056523,-716.42,0.00030136,120]
[380390958,1755723056534,-400.0,0.00030136,120]
[380390959,1755723056546,-1208.95,0.00030136,120]
[380390960,1755723056556,-3902.34,0.00030136,120]
[380390961,1755723056568,-400.0,0.00030136,120]
[380390962,1755723056579,-1211.22,0.00030136,120]
[380390963,1755723056590,-400.0,0.00030136,120]
[380390964,1755723056601,-997.53,0.00030136,120]
[380390965,1755723056612,-400.0,0.00030136,120]
[380390966,1755723056624,-402.99,0.00030136,120]
[380390967,1755723056636,-400.0,0.00030136,120]
[380390968,1755723056647,-400.0,0.00030136,120]
[380390969,1755723056658,-828.54,0.00030136,120]
[380390970,1755723056669,-400.0,0.00030136,120]
[380390971,1755723056679,-400.0,0.00030136,120]
[380390972,1755723056690,-955.88,0.00030136,120]
[380390973,1755723056700,-400.0,0.00030136,120]
[380390974,1755723056710,-690.3,0.00030136,120]
[380390975,1755723056721,-750.5,0.00030136,120]
[380390976,1755723056732,-400.0,0.00030136,120]
[380390977,1755723056744,-777.73,0.00030136,120]
[380390978,1755723056756,-846.11,0.00030136,120]
[380390979,1755723056770,-2693.61,0.00030136,120]
[380390980,1755723056780,-400.0,0.00030136,120]
[380390981,1755723056790,-400.0,0.00030136,120]
[380390982,1755723056800,-1411.52,0.00030136,120]
[380390983,1755723056810,-400.0,0.00030136,120]
[380390984,1755723056820,-997.58,0.00030136,120]
[380390985,1755723058511,-978.44,0.00030136,120]
[380390986,1755723058542,-400.0,0.00030136,120]
[380390987,1755723058582,-831.31,0.00030136,120]
[380390988,1755723058615,-500.0,0.00030136,120]
[380390989,1755723058635,-400.0,0.00030136,120]
[380390990,1755723058656,-1083.46,0.00030136,120]
[380390991,1755723058673,-2450.36,0.00030136,118]
[380390992,1755723058683,-885.66,0.00030136,120]
[380390993,1755723058692,-908.16,0.00030136,120]
[380390994,1755723058701,-1151.89,0.00030136,120]
[380390995,1755723058711,-1200.25,0.00030136,120]
[380390996,1755723058720,-400.0,0.00030136,120]
[380390997,1755723058730,-996.69,0.00030136,120]
[380390998,1755723058739,-400.0,0.00030136,120]
[380390999,1755723058749,-400.0,0.00030136,120]
[380391000,1755723058758,-921.75,0.00030136,120]
[380391001,1755723058768,-400.0,0.00030136,120]
[380391002,1755723058778,-533.08570174,0.00030136,120]
[380391003,1755723058787,-911.4,0.00030136,120]
[380391004,1755723058796,-400.0,0.00030136,120]
[380391005,1755723058806,-400.0,0.00030136,120]
[380391006,1755723058816,-884.95,0.00030136,120]
[380391007,1755723058826,-1158.01,0.00030136,120]
[380391008,1755723058836,-400.0,0.00030136,120]
[380391009,1755723058846,-400.0,0.00030136,120]
[380391010,1755723058856,-400.0,0.00030136,120]
[380391011,1755723058866,-400.0,0.00030136,120]
[380391012,1755723058875,-1375.32,0.00030136,120]
[380391013,1755723058885,-1069.09,0.00030136,120]
[380391014,1755723058895,-400.0,0.00030136,120]
[380391015,1755723058904,-1389.32,0.00030136,120]
[380391016,1755723058917,-1355.22,0.00030136,120]
[380391017,1755723058926,-1243.21,0.00030136,120]
[380391018,1755723058936,-1678.28,0.00030136,120]
[380391019,1755723058945,-948.56,0.00030136,120]
[380391020,1755723058955,-984.21,0.00030136,120]
[380391021,1755723058964,-991.03,0.00030136,120]
[380391022,1755723058973,-573.54,0.00030136,120]
[380391023,1755723058983,-1362.62,0.00030136,120]
[380391024,1755723058993,-535.27,0.00030136,120]
[380391025,1755723059003,-2366.67,0.00030136,120]
[380391026,1755723059013,-401.45,0.00030136,120]
[380391027,1755723059023,-400.0,0.00030136,120]
[380391028,1755723059034,-513.74,0.00030136,120]
[380391029,1755723059043,-400.0,0.00030136,120]
[380391030,1755723059053,-1046.07,0.00030136,120]
[380391031,1755723059063,-400.0,0.00030136,2]
[380391032,1755723059072,-580.23,0.00030136,120]
[380391033,1755723059082,-483.21,0.00030136,120]
[380391034,1755723059091,-769.97,0.00030136,120]
[380391035,1755723059102,-400.0,0.00030136,120]
[380391036,1755723059111,-842.84,0.00030136,120]
[380391037,1755723059121,-663.52,0.00030136,120]
[380391038,1755723059130,-400.0,0.00030136,120]
[380391039,1755723059139,-840.06,0.00030136,120]
[380391040,1755723059149,-267.6827562,0.00030136,120]
[380391041,1755723059159,-846.45,0.00030136,120]
[380391042,1755723059169,-3716.84,0.00030136,120]
[380391043,1755723059179,-400.0,0.00030136,120]
[380391044,1755723059188,-400.0,0.00030136,120]
[380391046,1755723059197,-2632.76,0.00030136,120]
[380391047,1755723059208,-1207.84,0.00030136,120]
[380391048,1755723059217,-1046.54,0.00030136,120]
[380391049,1755723059227,-1122.5,0.00030136,120]
[380391050,1755723059239,-1075.73,0.00030136,120]
[380391051,1755723059249,-558.7,0.00030136,120]
[380391052,1755723059259,-500.0,0.00030136,15]
[380391053,1755723059269,-845.39,0.00030136,120]
[380391054,1755723059278,-500.0,0.00030136,15]
[380391055,1755723059288,-891.72,0.00030136,120]
[380391056,1755723059297,-1160.95,0.00030136,120]
[380391057,1755723059309,-500.0,0.00030136,15]
[380391058,1755723059319,-525.02334684,0.00030136,120]
[380391059,1755723059328,-500.0,0.00030136,15]
[380391060,1755723059338,-628.5,0.00030136,120]
[380391061,1755723059348,-500.0,0.00030136,15]
[380391062,1755723059357,-500.0,0.00030136,15]
[380391063,1755723059367,-806.8,0.00030136,120]
[380391064,1755723059376,-967.46,0.00030136,120]
[380391065,1755723059386,-500.0,0.00030136,15]
[380391066,1755723059395,-500.0,0.00030136,15]
[380391067,1755723059405,-1148.21,0.00030136,120]
[380391068,1755723059415,-500.0,0.00030136,15]
[380391069,1755723059431,-1316.52,0.00030136,120]
[380391070,1755723059443,-500.0,0.00030136,15]
[380391071,1755723059452,-400.0,0.00030136,120]
[380391072,1755723059462,-500.0,0.00030136,15]
[380391073,1755723059474,-500.0,0.00030136,15]
[380391074,1755723059484,-530.13,0.00030136,120]
[380391075,1755723059494,-500.0,0.00030136,15]
[380391076,1755723059504,-500.0,0.00030136,15]
[380391077,1755723059513,-818.75,0.00030136,120]
[380391078,1755723059523,-400.0,0.00030136,120]
[380391079,1755723059532,-518.14121999,0.00030136,15]
[380391080,1755723059543,-400.0,0.00030136,120]
[380391081,1755723059552,-1114.44,0.00030136,120]
[380391082,1755723059561,-400.0,0.00030136,120]
[380391083,1755723059570,-400.0,0.00030136,16]
[380391084,1755723059580,-1193.27,0.00030136,120]
[380391085,1755723059590,-1232.33,0.00030136,120]
[380391086,1755723059599,-711.05,0.00030136,120]
[380391087,1755723059609,-1024.08,0.00030136,120]
[380391088,1755723059619,-1044.11,0.00030136,120]
[380391089,1755723059628,-400.0,0.00030136,120]
[380391090,1755723059638,-3072.91,0.00030136,120]
[380391091,1755723059648,-749.78,0.00030136,120]
[380391092,1755723059657,-400.0,0.00030136,120]
[380391093,1755723059667,-400.0,0.00030136,120]
[380391094,1755723059678,-758.7,0.00030136,120]
[380391095,1755723059688,-1018.76,0.00030136,120]
[380391096,1755723059698,-822.08,0.00030136,120]
[380391097,1755723059709,-851.96,0.00030136,120]
[380391098,1755723059719,-668.76,0.00030136,120]
[380391099,1755723059730,-1588.2,0.00030136,120]
[380391100,1755723059740,-400.0,0.00030136,120]
[380391101,1755723059750,-988.17,0.00030136,120]
[380391102,1755723059759,-400.0,0.00030136,120]
[380391103,1755723059769,-860.03,0.00030136,120]
[380391104,1755723059779,-400.0,0.00030136,120]
[380391105,1755723059788,-880.46,0.00030136,120]
[380391106,1755723059798,-893.31,0.00030136,120]
[380391107,1755723059807,-876.88,0.00030136,120]
[380391108,1755723059817,-400.0,0.00030136,120]
[380391109,1755723059827,-410.31,0.00030136,120]
[380391110,1755723059837,-400.0,0.00030136,120]
[380391111,1755723059847,-521.1,0.00030136,120]
[380391112,1755723059856,-800.21,0.00030136,120]
[380391113,1755723059865,-400.0,0.00030136,120]
[380391114,1755723059875,-400.0,0.00030136,120]
[380391115,1755723059885,-886.13,0.00030136,120]
[380391116,1755723059894,-400.0,0.00030136,120]
[380391117,1755723059904,-400.0,0.00030136,120]
[380391118,1755723059915,-987.44,0.00030136,120]
[380391119,1755723059924,-400.0,0.00030136,120]
[380391120,1755723059933,-1462.91,0.00030136,120]
[380391121,1755723059943,-3210.95,0.00030136,120]
[380391122,1755723059953,-2964.35,0.00030136,120]
[380391123,1755723059963,-932.52,0.00030136,120]
[380391124,1755723059973,-474.76,0.00030136,120]
[380391125,1755723059983,-400.0,0.00030136,120]
[380391126,1755723059995,-744.48,0.00030136,120]
[380391127,1755723060004,-1217.72,0.00030136,120]
[380391128,1755723060014,-528.72,0.00030136,120]
[380391129,1755723060024,-655.2,0.00030136,120]
[380391130,1755723060034,-400.0,0.00030136,120]
[380391131,1755723060044,-1430.4,0.00030136,120]
[380391132,1755723060055,-1496.85,0.00030136,120]
[380391133,1755723060065,-400.0,0.00030136,120]
[380391134,1755723060075,-400.0,0.00030136,120]
[380391135,1755723060086,-932.41,0.00030136,120]
[380391136,1755723060096,-596.0,0.00030136,120]
[380391137,1755723060106,-400.0,0.00030136,120]
[380391138,1755723060117,-884.96,0.00030136,120]
[380391139,1755723060127,-1378.38,0.00030136,120]
[380391140,1755723060136,-884.16,0.00030136,120]
[380391141,1755723060146,-400.0,0.00030136,120]
[380391142,1755723060156,-1344.14,0.00030136,120]
[380391143,1755723060166,-905.43,0.00030136,120]
[380391144,1755723060175,-1489.78,0.00030136,120]
[380391145,1755723060185,-400.0,0.00030136,5]
[380391146,1755723060195,-400.0,0.00030136,120]
[380391147,1755723060206,-400.0,0.00030136,120]
[380391148,1755723060217,-582.14,0.00030136,120]
[380391149,1755723060228,-400.0,0.00030136,120]
[380391150,1755723060239,-1558.9,0.00030136,120]
[380391151,1755723060250,-460.86,0.00030136,120]
[380391152,1755723060260,-967.71,0.00030136,120]
[380391153,1755723060270,-388.30828749,0.00030136,120]
[380391154,1755723060279,-435.66,0.00030136,120]
[380391155,1755723060289,-875.35,0.00030136,120]
[380391156,1755723060299,-400.0,0.00030136,120]
[380391157,1755723060309,-400.0,0.00030136,120]
[380391158,1755723060320,-1381.46,0.00030136,120]
[380391159,1755723060330,-785.73,0.00030136,120]
[380391160,1755723060340,-1020.3,0.00030136,120]
[380391161,1755723060350,-998.81,0.00030136,120]
[380391162,1755723060360,-522.83,0.00030136,120]
[380391163,1755723060370,-400.0,0.00030136,120]
[380391164,1755723060379,-1226.22,0.00030136,120]
[380391165,1755723060389,-400.0,0.00030136,120]
[380391166,1755723060399,-1578.21,0.00030136,30]
[380391167,1755723060409,-2000.25,0.00030136,120]
[380391168,1755723060426,-694.41,0.00030136,120]
[380391169,1755723060436,-400.0,0.00030136,120]
[380391170,1755723060446,-400.0,0.00030136,120]
[380391171,1755723060455,-678.37,0.00030136,120]
[380391172,1755723060466,-1174.88,0.00030136,120]
[380391173,1755723060476,-433.57,0.00030136,120]
[380391174,1755723060485,-400.0,0.00030136,120]
[380391175,1755723060498,-400.0,0.00030136,120]
[380391176,1755723060510,-309.29102964,0.00030136,120]
[380391177,1755723060520,-400.0,0.00030136,120]
[380391178,1755723060530,-1520.97,0.00030136,120]
[380391179,1755723060540,-833.87,0.00030136,120]
[380391180,1755723060550,-445.4,0.00030136,120]
[380391181,1755723060559,-400.0,0.00030136,120]
[380391182,1755723060569,-525.64,0.00030136,120]
[380391183,1755723060578,-525.64,0.00030136,120]
[380391184,1755723060589,-1364.19,0.00030136,120]
[380391185,1755723060598,-400.0,0.00030136,120]
[380391186,1755723060608,-1451.58,0.00030136,120]
[380391187,1755723060618,-400.0,0.00030136,120]
[380391188,1755723060627,-400.0,0.00030136,120]
[380391189,1755723060638,-400.0,0.00030136,2]
[380391190,1755723060647,-832.58,0.00030136,120]
[380391191,1755723060658,-870.64,0.00030136,120]
[380391192,1755723060667,-646.17,0.00030136,120]
[380391193,1755723060677,-400.0,0.00030136,3]
[380391194,1755723060687,-869.15,0.00030136,120]
[380391195,1755723060696,-400.0,0.00030136,120]
[380391196,1755723060706,-559.05,0.00030136,120]
[380391197,1755723060715,-1766.52,0.00030136,120]
[380391198,1755723060725,-1316.17,0.00030136,120]
[380391199,1755723060734,-400.0,0.00030136,120]
[380391200,1755723060745,-1410.92,0.00030136,120]
[380391201,1755723060754,-400.0,0.00030136,120]
[380391202,1755723060764,-447.6,0.00030136,120]
[380391203,1755723060773,-386.28,0.00030136,120]
[380391204,1755723060783,-400.0,0.00030136,120]
[380391205,1755723060792,-400.0,0.00030136,120]
[380391206,1755723060801,-749.53,0.00030136,120]
[380391207,1755723060811,-650.86,0.00030136,120]
[380391208,1755723060820,-1229.55,0.00030136,120]
[380391209,1755723060830,-1137.69,0.00030136,120]
[380391210,1755723060840,-400.0,0.00030136,120]
[380391211,1755723060850,-610.74,0.00030136,120]
[380391212,1755723060859,-1284.05,0.00030136,120]
[380391213,1755723060868,-981.83,0.00030136,120]
[380391214,1755723060878,-675.01,0.00030136,120]
[380391215,1755723060887,-400.0,0.00030136,120]
[380391216,1755723060898,-400.0,0.00030136,120]
[380391217,1755723060908,-400.0,0.00030136,120]
[380391218,1755723060919,-943.31,0.00030136,120]
[380391219,1755723060928,-400.0,0.00030136,120]
[380391220,1755723060937,-400.0,0.00030136,120]
[380391221,1755723060947,-1261.57,0.00030136,120]
[380391222,1755723060956,-400.0,0.00030136,120]
[380391223,1755723060965,-400.0,0.00030136,120]
[380391224,1755723060975,-400.0,0.00030136,120]
[380391225,1755723060984,-400.0,0.00030136,120]
[380391226,1755723060996,-464.47,0.00030136,120]
[380391227,1755723061006,-1161.59,0.00030136,120]
[380391228,1755723061015,-400.0,0.00030136,120]
[380391229,1755723061026,-1513.35,0.00030136,120]
[380391230,1755723061035,-1934.07,0.00030136,120]
[380391231,1755723061045,-589.37,0.00030136,120]
[380391232,1755723061055,-400.0,0.00030136,120]
[380391233,1755723061066,-1086.04,0.00030136,120]
[380391234,1755723061075,-1391.18,0.00030136,120]
[380391235,1755723061086,-400.0,0.00030136,120]
[380391236,1755723062560,-400.0,0.00030136,120]
[380391237,1755723062581,-407.18,0.00030136,120]
[380391238,1755723062590,-580.56,0.00030136,120]
[380391239,1755723062600,-653.3,0.00030136,120]
[380391240,1755723062610,-400.0,0.00030136,120]
[380391241,1755723062619,-400.0,0.00030136,30]
[380391242,1755723062628,-1042.15,0.00030136,120]
[380391243,1755723062639,-894.39,0.00030136,120]
[380391244,1755723062648,-1054.31,0.00030136,120]
[380391245,1755723062658,-400.0,0.00030136,120]
[380391246,1755723062668,-407.15,0.00030136,120]
[380391247,1755723062677,-400.0,0.00030136,120]
[380391248,1755723062687,-575.87,0.00030136,120]
[380391249,1755723062697,-400.0,0.00030136,120]
[380391250,1755723062708,-673.48,0.00030136,120]
[380391251,1755723062719,-987.3,0.00030136,120]
[380391252,1755723062733,-2347.72,0.00030136,120]
[380391253,1755723062746,-509.95,0.00030136,120]
[380391254,1755723062756,-1007.65,0.00030136,120]
[380391255,1755723062766,-400.0,0.00030136,120]
[380391256,1755723062776,-2485.05,0.00030136,2]
[380391257,1755723062786,-2485.05,0.00030136,2]
[380391258,1755723062796,-2485.05,0.00030136,2]
[380391259,1755723062806,-2485.05,0.00030136,2]
[380391260,1755723062818,-2485.05,0.00030136,2]
[380391261,1755723062828,-2485.05,0.00030136,2]
[380391262,1755723062838,-2485.05,0.00030136,2]
[380391263,1755723062848,-2485.05,0.00030136,2]
[380391264,1755723062858,-2485.05,0.00030136,2]
[380391265,1755723062868,-695.88,0.00030136,120]
[380391266,1755723062877,-552.7,0.00030136,120]
[380391267,1755723062887,-2485.05,0.00030136,2]
[380391268,1755723062896,-2485.05,0.00030136,2]
[380391269,1755723062906,-2485.05,0.00030136,2]
[380391270,1755723062915,-1131.61,0.00030136,120]
[380391271,1755723062924,-720.11,0.00030136,120]
[380391272,1755723062935,-2485.05,0.00030136,2]
[380391273,1755723062944,-2485.05,0.00030136,2]
[380391274,1755723062954,-2485.05,0.00030136,2]
[380391275,1755723062964,-2485.05,0.00030136,2]
[380391276,1755723062974,-2485.05,0.00030136,2]
[380391277,1755723062983,-2485.05,0.00030136,2]
[380391278,1755723062994,-2485.05,0.00030136,2]
[380391279,1755723063004,-2485.05,0.00030136,2]
[380391280,1755723063014,-2485.05,0.00030136,2]
[380391281,1755723063024,-2485.05,0.00030136,2]
[380391282,1755723063033,-1214.34,0.00030136,120]
[380391283,1755723063043,-2485.05,0.00030136,2]
[380391284,1755723063053,-400.0,0.00030136,120]
[380391285,1755723063063,-2485.27155928,0.00030136,2]
[380391286,1755723063073,-400.0,0.00030136,120]
[380391287,1755723063082,-885.42,0.00030136,120]
[380391288,1755723063092,-1722.66,0.00030136,120]
[380391289,1755723063102,-400.0,0.00030136,120]
[380391290,1755723063112,-400.0,0.00030136,120]
[380391291,1755723063122,-1477.58,0.00030136,120]
[380391292,1755723063132,-400.0,0.00030136,120]
[380391293,1755723063144,-1229.94,0.00030136,120]
[380391294,1755723063154,-400.0,0.00030136,120]
[380391295,1755723063164,-1133.28,0.00030136,120]
[380391296,1755723063174,-400.0,0.00030136,120]
[380391297,1755723063184,-781.28,0.00030136,120]
[380391298,1755723063194,-1250.04,0.00030136,120]
[380391299,1755723063204,-1174.93,0.00030136,120]
[380391300,1755723063214,-515.93,0.00030136,120]
[380391301,1755723063224,-400.0,0.00030136,120]
[380391302,1755723063235,-782.58,0.00030136,120]
[380391303,1755723063247,-640.22,0.00030136,120]
[380391304,1755723063257,-1470.2,0.00030136,120]
[380391305,1755723063267,-400.0,0.00030136,120]
[380391306,1755723063278,-400.0,0.00030136,120]
[380391307,1755723063288,-927.73,0.00030136,120]
[380391308,1755723063298,-826.57,0.00030136,120]
[380391309,1755723063308,-417.8,0.00030136,120]
[380391310,1755723063318,-722.3,0.00030136,120]
[380391311,1755723063328,-829.08,0.00030136,120]
[380391312,1755723063338,-1052.82,0.00030136,120]
[380391313,1755723063348,-1428.7,0.00030136,120]
[380391314,1755723063357,-400.0,0.00030136,120]
[380391315,1755723063367,-400.0,0.00030136,120]
[380391316,1755723063378,-400.0,0.00030136,120]
[380391317,1755723063387,-480.28,0.00030136,120]
[380391318,1755723063398,-187.05930841,0.00030136,120]
[380391319,1755723063408,-891.14,0.00030136,120]
[380391320,1755723063418,-2015.36,0.00030136,120]
[380391321,1755723063431,-534.08258362,0.00030136,120]
[380391322,1755723063441,-787.97,0.00030136,120]
[380391323,1755723063451,-594.09,0.00030136,120]
[380391324,1755723063460,-400.0,0.00030136,120]
[380391325,1755723063470,-547.62,0.00030136,120]
[380391326,1755723063480,-400.0,0.00030136,120]
[380391327,1755723063491,-544.74,0.00030136,120]
[380391328,1755723063503,-400.0,0.00030136,120]
[380391329,1755723063513,-1058.34,0.00030136,120]
[380391330,1755723063523,-400.0,0.00030136,120]
[380391331,1755723063533,-400.0,0.00030136,120]
[380391332,1755723063543,-400.0,0.00030136,120]
[380391333,1755723063552,-1645.91,0.00030136,30]
[380391334,1755723063562,-808.57,0.00030136,120]
[380391335,1755723063572,-400.0,0.00030136,120]
[380391336,1755723063583,-816.43,0.00030136,120]
[380391337,1755723063594,-169.24341259,0.00030136,2]
[380391338,1755723063604,-400.0,0.00030136,120]
[380391339,1755723063614,-400.0,0.00030136,120]
[380391340,1755723063624,-1250.2,0.00030136,120]
[380391341,1755723063634,-547.7409703,0.00030136,120]
[380391342,1755723063644,-1506.99,0.00030136,120]
[380391343,1755723063654,-400.0,0.00030136,120]
[380391344,1755723063664,-400.0,0.00030136,120]
[380391345,1755723063674,-1001.9,0.00030136,120]
[380391346,1755723063685,-400.0,0.00030136,120]
[380391347,1755723063695,-764.14,0.00030136,120]
[380391348,1755723063706,-558.65,0.00030136,120]
[380391349,1755723063716,-415.4,0.00030136,120]
[380391350,1755723063725,-400.0,0.00030136,120]
[380391351,1755723063734,-941.04,0.00030136,120]
[380391352,1755723063746,-545.63,0.00030136,120]
[380391353,1755723063755,-400.0,0.00030136,120]
[380391354,1755723063765,-400.0,0.00030136,120]
[380391355,1755723063775,-492.5,0.00030136,120]
[380391356,1755723063786,-1260.39,0.00030136,90]
[380391357,1755723063796,-1283.11,0.00030136,120]
[380391358,1755723063806,-430.78,0.00030136,120]
[380391359,1755723063816,-400.0,0.00030136,120]
[380391360,1755723063826,-297.91418731,0.00030136,120]
[380391361,1755723063836,-1219.57,0.00030136,120]
[380391362,1755723063846,-1168.75,0.00030136,120]
[380391363,1755723063856,-418.03,0.00030136,120]
[380391364,1755723063866,-411.34,0.00030136,120]
[380391365,1755723063876,-400.0,0.00030136,120]
[380391366,1755723063886,-1158.73,0.00030136,120]
[380391367,1755723063896,-400.0,0.00030136,120]
[380391368,1755723063906,-1184.82,0.00030136,120]
[380391369,1755723063916,-816.46,0.00030136,120]
[380391370,1755723063926,-400.0,0.00030136,120]
[380391371,1755723063935,-714.4,0.00030136,120]
[380391372,1755723063945,-1144.33,0.00030136,120]
[380391373,1755723063955,-400.0,0.00030136,120]
[380391374,1755723063964,-1129.69,0.00030136,120]
[380391375,1755723063974,-478.57,0.00030136,120]
[380391376,1755723063983,-400.0,0.00030136,120]
[380391377,1755723063995,-625.1,0.00030136,120]
[380391378,1755723064005,-1055.86,0.00030136,120]
[380391379,1755723064014,-400.0,0.00030136,120]
[380391380,1755723064024,-400.0,0.00030136,120]
[380391381,1755723064034,-400.0,0.00030136,120]
[380391382,1755723064044,-400.0,0.00030136,120]
[380391383,1755723064053,-400.0,0.00030136,120]
[380391384,1755723064062,-1250.38,0.00030136,120]
[380391385,1755723064072,-1211.01,0.00030136,120]
[380391386,1755723064082,-400.0,0.00030136,120]
[380391387,1755723064091,-1199.12,0.00030136,120]
[380391388,1755723064101,-400.0,0.00030136,120]
[380391389,1755723064111,-530.87,0.00030136,120]
[380391390,1755723064121,-400.0,0.00030136,120]
[380391391,1755723064131,-857.17,0.00030136,120]
[380391392,1755723064141,-400.0,0.00030136,120]
[380391393,1755723064150,-943.96,0.00030136,120]
[380391394,1755723064159,-740.78,0.00030136,120]
[380391395,1755723064170,-1033.69,0.00030136,120]
[380391396,1755723064180,-400.0,0.00030136,120]
[380391397,1755723064190,-400.0,0.00030136,120]
[380391398,1755723064200,-837.01,0.00030136,120]
[380391399,1755723064210,-287.99356876,0.00030136,120]
[380391400,1755723064220,-400.0,0.00030136,120]
[380391401,1755723064230,-1056.78,0.00030136,120]
[380391402,1755723064241,-400.0,0.00030136,120]
[380391403,1755723064251,-400.0,0.00030136,120]
[380391404,1755723064261,-720.83,0.00030136,120]
[380391405,1755723064271,-943.42,0.00030136,120]
[380391406,1755723064281,-548.65191469,0.00030136,120]
[380391407,1755723064291,-400.0,0.00030136,120]
[380391408,1755723064301,-851.22,0.00030136,120]
[380391409,1755723064311,-590.24,0.00030136,120]
[380391410,1755723064320,-855.83,0.00030136,120]
[380391411,1755723064330,-400.0,0.00030136,14]
[380391412,1755723064339,-529.83,0.00030136,120]
[380391413,1755723064349,-400.0,0.00030136,120]
[380391414,1755723064359,-400.0,0.00030136,120]
[380391415,1755723064369,-400.0,0.00030136,120]
[380391416,1755723064380,-400.0,0.00030136,120]
[380391417,1755723064390,-866.74,0.00030136,120]
[380391418,1755723064400,-978.48,0.00030136,60]
[380391419,1755723064409,-400.0,0.00030136,30]
[380391420,1755723064421,-400.0,0.00030136,120]
[380391421,1755723064433,-1131.7,0.00030136,120]
[380391422,1755723064442,-400.0,0.00030136,120]
[380391423,1755723064452,-489.34,0.00030136,120]
[380391424,1755723064463,-500.9,0.00030136,120]
[380391425,1755723064473,-351.28893091,0.00030136,120]
[380391426,1755723064482,-1161.23,0.00030136,120]
[380391427,1755723064491,-1221.61,0.00030136,120]
[380391428,1755723064502,-691.22,0.00030136,120]
[380391429,1755723064512,-492.74,0.00030136,120]
[380391430,1755723064522,-932.82,0.00030136,120]
[380391431,1755723064531,-400.0,0.00030136,120]
[380391432,1755723064541,-400.0,0.00030136,120]
[380391433,1755723064551,-400.0,0.00030136,120]
[380391434,1755723064560,-450.12,0.00030136,120]
[380391435,1755723064570,-1262.5,0.00030136,120]
[380391436,1755723064579,-602.78,0.00030136,120]
[380391437,1755723064590,-400.0,0.00030136,120]
[380391438,1755723064600,-1293.04,0.00030136,120]
[380391439,1755723064610,-400.0,0.00030136,120]
[380391440,1755723064620,-400.0,0.00030136,120]
[380391441,1755723064630,-221.33602646,0.00030136,120]
[380391442,1755723064639,-1350.73,0.00030136,120]
[380391443,1755723064649,-519.6,0.00030136,120]
[380391444,1755723064659,-400.0,0.00030136,120]
[380391445,1755723064669,-400.0,0.00030136,120]
[380391446,1755723064679,-454.65,0.00030136,120]